Cogmind - Beta 14 @@@ ROGUE MODE // 2024.12.30 @ 08:31:17 Player: Benkyo Result: Destroyed by 8R-AWN with 8R-AWN's Boregun Performance ------------- Evolutions (0) 0 Regions Visited (3) 600 Robots Destroyed (27) 135 Value Destroyed (311) 311 Prototype IDs (25) 500 Alien Tech Used (0) 0 Bonus (300) 300 TOTAL SCORE: 1846 Bonus ------- Aligned with FarCom 300 Cogmind --------- Core Integrity 0/250 Matter 220/300 Energy 264/265 System Corruption 1% Temperature Warm (141) Movement Core (950) Ox18 Location -10/Exiles Parts ------- > --- POWER (1) -------- Reinforced Ion Engine > --- PROPULSION (2) --- (None) > --- UTILITY (2) ------ High-capacity Storage Unit > --- WEAPON (2) ------- Beam Cannon Heavy Assault Rifle > --- INVENTORY (20) --- Ion Engine Wheel Huge Storage Unit Structural Scanner Improved Terrain Scanner Seismic Detector Light Cannon Grenade Launcher Plasma Cutter Heavy Hammer Peak State ------------ > --- POWER ------------ Reinforced Ion Engine > --- PROPULSION ------- Light Treads Light Treads > --- UTILITY ---------- High-capacity Storage Unit Cloak of Protection > --- WEAPON ----------- Heavy Assault Rifle Heavy Assault Rifle > --- INVENTORY -------- Ion Engine Nuclear Core Fission Core Fission Core Wheel Huge Storage Unit High-capacity Matter Pod Structural Scanner Improved Terrain Scanner Seismic Detector Light Armor Plating Beam Cannon Heavy Assault Rifle Heavy Assault Rifle Light Cannon Grenade Launcher Plasma Cutter Heavy Hammer [Rating: 20] Favorites ----------- Power Reinforced Ion Engine Engine Reinforced Ion Engine Propulsion Light Treads Treads Light Treads Utility Seismic Detector Device Seismic Detector Storage Large Storage Unit Protection Light Armor Plating Weapon Heavy Assault Rifle Energy Cannon Beam Cannon Ballistic Gun Heavy Assault Rifle Special Weapon Mining Laser Impact Weapon Heavy Hammer Build | -11 -10 -10 -10 ------- Run | Yrd Mat Min Exi Slots Evolved . | . . . . Power . | . . . . Propulsion . | . . . . Utility . | . . . . Weapon . | . . . . Parts Attached 30 | 8 12 . 10 Power 2 | 1 1 . . Engine 2 | 1 1 . . Core . | . . . . Reactor . | . . . . Propulsion 3 | 2 1 . . Treads 3 | 2 1 . . Leg . | . . . . Wheel . | . . . . Hover . | . . . . Flight . | . . . . Utility 10 | 3 2 . 5 Device 4 | 2 1 . 1 Storage 4 | 1 1 . 2 Processor . | . . . . Hackware . | . . . . Protection 2 | . . . 2 Artifact . | . . . . Weapon 15 | 2 8 . 5 Energy Gun . | . . . . Energy Cannon 1 | . . . 1 Ballistic Gun 12 | 2 6 . 4 Ballistic Cannon . | . . . . Launcher . | . . . . Special Weapon 1 | . 1 . . Impact Weapon 1 | . 1 . . Slashing Weapon . | . . . . Piercing Weapon . | . . . . Special Melee Weapon . | . . . . Unidentified Prototypes . | . . . . Parts Lost 8 | . 1 . 7 Power . | . . . . Propulsion 3 | . 1 . 2 Utility 2 | . . . 2 Weapon 3 | . . . 3 Highest Loss Streak 7 | . 1 . 7 To Critical Strikes 6 | . . . 6 Average Slot Usage (%) 90 | . 100 100 74 Engine 14 | . 14 14 14 Treads 27 | . 28 28 26 Device 13 | . 14 14 11 Storage 14 | . 14 14 14 Ballistic Gun 19 | . 27 28 5 Peak Build Rating 20 | 10 12 12 20 Average Rating 10 | 7 9 12 11 On Entrance 8 | . 8 12 12 Naked Turns . | . . . . Heaviest Build 91 | 14 37 37 91 Greatest Support 40 | 40 40 40 40 Greatest Overweight (x) 2 | 2 . . 2 Average Overweight (x) . | . . . 1 Largest Inventory Capacity 25 | 8 15 15 25 Average Capacity 16 | 7 14 15 22 Most Carried 21 | 8 15 15 21 Average Carried 15 | 4 13 14 18 Final Capacity 20 | 8 15 15 20 Final Carried 15 | 8 15 15 10 Class Distribution -------------------- 100% | Mutant Dominant Class ---------------- Mutant | -10/Materials Mutant | -10/Mines Mutant | -10/Exiles Resources | -11 -10 -10 -10 ----------- Run | Yrd Mat Min Exi Matter Collected 1341 | 419 568 59 295 Remotely . | . . . . Salvage Created 639 | 158 481 . . Parts 61 | 14 47 . . Haulers Intercepted 2 | . 2 . . Recyclers Shooed 1 | . 1 . . Parts Field Recycled . | . . . . Retrieved Matter . | . . . . Parts Self-Destructed . | . . . . Prevented . | . . . . Kills | -11 -10 -10 -10 ------- Run | Yrd Mat Min Exi Combat Hostiles Destroyed 13 | . 13 . . Guns 13 | . 13 . . Classes Destroyed 8 | 3 5 . . Worker 2 | 2 . . . Builder 4 | . 4 . . Tunneler 3 | 3 . . . Hauler 2 | . 2 . . Recycler 1 | 1 . . . Watcher 2 | . 2 . . Swarmer 9 | . 9 . . Grunt 4 | . 4 . . Best Kill Streak 4 | 3 4 . . Combat Bots Only 4 | . 4 . . Max Kills in Single Turn 2 | 1 2 . . Gunslinging . | . . . . Exploded . | . . . . Melee . | . . . . Uniques/NPCs Destroyed . | . . . . Combat | -11 -10 -10 -10 -------- Run | Yrd Mat Min Exi Hostile Shots Fired 137 | . 58 . 79 Missed 27 | . 15 . 12 Damage Taken 1597 | . 434 . 1163 Core 254 | . 32 . 222 Absorbed by Shields . | . . . . Core Remaining (%) 100 | 100 . . . Volleys Fired 105 | 13 51 2 39 Largest 2 | 2 2 2 2 Hottest 100 | 40 100 46 83 Shots Fired 206 | 26 100 4 76 Gun 201 | 26 98 4 73 Cannon 3 | . . . 3 Launcher . | . . . . Special 2 | . 2 . . Kinetic 201 | 26 98 4 73 Thermal 5 | . 2 . 3 Explosive . | . . . . Electromagnetic . | . . . . Robot Hit Streak 14 | 5 7 1 14 Robot Miss Streak 6 | 1 6 1 3 Penetration Max . | . . . . Secondary Targets . | . . . . Shots Hit Robots 131 | 17 54 2 58 Core Hits 43 | 9 27 . 7 Critical Kills . | . . . . Critical Parts Destroyed . | . . . . Critical Strikes 1 | . . . 1 Destroy 1 | . . . 1 Melee Attacks 1 | . 1 . . Impact 1 | . 1 . . Slashing . | . . . . Piercing . | . . . . Sneak Attacks . | . . . . Combat Hostiles . | . . . . Follow-up Attacks . | . . . . Damage Inflicted 1795 | 177 686 28 904 Guns 1742 | 177 686 28 851 Cannons 53 | . . . 53 Explosions . | . . . . Melee . | . . . . Ramming . | . . . . Kinetic 1742 | 177 686 28 851 Thermal 53 | . . . 53 Explosive . | . . . . Electromagnetic . | . . . . Impact . | . . . . Slashing . | . . . . Piercing . | . . . . Highest Corruption 1 | . 1 1 1 Average Corruption 1 | . 1 1 1 Corruption Purged . | . . . . Corruption Blocked . | . . . . Effects 22 | . 3 7 12 Message Errors 4 | . . 2 2 Matter Fused 6 | . . 3 3 Heat Flow Errors 5 | . 1 1 3 Energy Discharges 4 | . 1 1 2 Data Loss (minor) 2 | . 1 . 1 Alerts 1 | . . . 1 Overload Shots . | . . . . Overflow Damage . | . . . . Projectiles . | . . . . Explosions . | . . . . Melee . | . . . . Knockbacks . | . . . . Impact . | . . . . Kinetic . | . . . . Secondary . | . . . . Self-Inflicted Damage . | . . . . Shots . | . . . . Rammed . | . . . . Targets Rammed . | . . . . Kicked . | . . . . Crushed . | . . . . Highest Temperature 223 | . 162 168 223 Average Temperature 64 | . 37 86 71 Received Heat Transfer 102 | . 102 . . Siege Activations . | . . . . Robots Corrupted . | . . . . Combat Hostiles . | . . . . Parts Fried . | . . . . Impact Corruptions . | . . . . Robots Melted . | . . . . Combat Hostiles . | . . . . Parts Melted . | . . . . Heat Transferred 27 | . . . 27 Parts Sabotaged . | . . . . Parts Stolen . | . . . . Parts Stripped . | . . . . Power Chain Reactions . | . . . . Alert | -11 -10 -10 -10 ------- Run | Yrd Mat Min Exi Peak Influence 327 | 30 327 112 . Initial 112 | . 19 112 . Average 88 | 15 145 44 . Maximum Alert Level 1 | . 1 . . Low Security (%) 84 | 100 66 100 . Level 1 15 | . 33 . . Level 2 . | . . . . Level 3 . | . . . . Level 4 . | . . . . Level 5 . | . . . . High Security . | . . . . Max Security . | . . . . Squads Dispatched 2 | . 2 . . Investigation . | . . . . Extermination . | . . . . Reinforcement 2 | . 2 . . Assault . | . . . . Garrison . | . . . . Intercept . | . . . . Searches Triggered . | . . . . Construction Impeded . | . . . . Haulers Reinforced . | . . . . Active Scanning Responses . | . . . . Cargo Convoy Interrupts . | . . . . Stealth | -11 -10 -10 -10 --------- Run | Yrd Mat Min Exi Distress Signals 3 | . 3 . . Communications Jammed . | . . . . Distress Signals . | . . . . Times Spotted 27 | . 21 . 6 Peak Tracking Total 9 | . 5 . 9 Tactical Retreats 3 | . 3 . . Traps | -11 -10 -10 -10 ------- Run | Yrd Mat Min Exi Traps Triggered 2 | . 2 . . Indirectly . | . . . . Trap Hack Attempts . | . . . . Triggered . | . . . . Disarmed . | . . . . Reprogrammed . | . . . . Reused . | . . . . Traps Extracted . | . . . . Installed . | . . . . Triggered . | . . . . Machines | -11 -10 -10 -10 ---------- Run | Yrd Mat Min Exi Machines Disabled 4 | . . . 4 Max in Single Turn 1 | . . . 1 Machines Repaired . | . . . . Machines Dismantled . | . . . . Machines Sabotaged . | . . . . Overloaded Fab Kills . | . . . . Hacking | -11 -10 -10 -10 --------- Run | Yrd Mat Min Exi Machines Accessed 11 | . 9 . 2 Terminals 7 | . 7 . . Fabricators . | . . . . Repair Stations . | . . . . Recycling Units 2 | . 2 . . Scanalyzers . | . . . . Garrison Access . | . . . . Total Hacks 29 | . 27 . 2 Successful 14 | . 12 . 2 Failed 14 | . 14 . . Catastrophic 1 | . 1 . . Database Lockouts 1 | . 1 . . Manual 18 | . 17 . 1 Terminals 21 | . 21 . . Fabricators . | . . . . Repair Stations . | . . . . Recycling Units 6 | . 6 . . Scanalyzers . | . . . . Garrison Access . | . . . . Terminal Hacks 8 | . 6 . 2 Record 1 | . . . 1 Robot Analysis 2 | . 2 . . Prototype ID Bank 1 | . 1 . . Locate Traps 2 | . 2 . . Hauler Manifests 1 | . 1 . . Derelict Proto ID Bank 1 | . . . 1 Fabricator Hacks . | . . . . Repair Station Hacks . | . . . . Recycling Unit Hacks 2 | . 2 . . Retrieve Components 2 | . 2 . . Scanalyzer . | . . . . Garrison Access Hacks . | . . . . Unauthorized Hacks 4 | . 4 . . Terminals 2 | . 2 . . Botnet 1 | . 1 . . Operators 1 | . 1 . . Fabricators . | . . . . Repair Stations . | . . . . Recycling Units 2 | . 2 . . Mask 2 | . 2 . . Scanalyzers . | . . . . Garrison Access . | . . . . Data Cores Recovered . | . . . . Used . | . . . . Hacking Detections 9 | . 9 . . Full Trace Events 2 | . 2 . . Feedback Events . | . . . . Feedback Blocked . | . . . . Robot Schematics Acquired . | . . . . Robots Built . | . . . . Authchips . | . . . . Time . | . . . . Total Robot Build Rating . | . . . . Part Schematics Acquired . | . . . . Parts Built . | . . . . Authchips . | . . . . Time . | . . . . Total Part Build Rating . | . . . . Parts Repaired . | . . . . Time . | . . . . Parts Recycled . | . . . . Recycled Matter . | . . . . Retrieved Matter . | . . . . Retrieved Components 12 | . 12 . . Parts Scanalyzed . | . . . . Part Schematics Acquired . | . . . . Parts Damaged . | . . . . Bothacking | -11 -10 -10 -10 ------------ Run | Yrd Mat Min Exi Used RIF Installer . | . . . . Robots Hacked . | . . . . Non-combat . | . . . . Combat . | . . . . Robot Hacks Applied . | . . . . Relay Couplers Released . | . . . . Fabnet Peak Effective % . | . . . . Robots Rewired . | . . . . Allies Hacked . | . . . . Hacks Repelled . | . . . . Allies | -11 -10 -10 -10 -------- Run | Yrd Mat Min Exi Total Allies . | . . . . Largest Group . | . . . . Highest-Rated Group . | . . . . Highest-Rated Ally . | . . . . Total Orders . | . . . . Ally Attacks . | . . . . Total Damage . | . . . . Kills . | . . . . Allies Corrupted . | . . . . Allies Melted . | . . . . Intel | -11 -10 -10 -10 ------- Run | Yrd Mat Min Exi Robot Analysis Total 2 | . 2 . . Derelict Logs Recovered 2 | . . 2 . Drone Launches . | . . . . Drone Recoveries . | . . . . Exploration | -11 -10 -10 -10 ------------- Run | Yrd Mat Min Exi Turns Passed 3416 | 210 1033 1008 1165 Spaces Moved 1554 | 70 502 626 356 Core 6 | 6 . . . Treads 1548 | 64 502 626 356 Legs . | . . . . Wheels . | . . . . Hover . | . . . . Flight . | . . . . Fastest Speed 50 | 50 160 160 160 Average Speed 186 | 155 160 160 274 Slowest Speed 320 | 160 160 160 320 Overloaded Moves . | . . . . Propulsion Burnouts . | . . . . Robots Hopped . | . . . . Cave-ins Triggered . | . . . . Exploration Rate (%) 66 | 4 94 98 68 Regions Visited 3 Branch Regions 2 Pre-discovered Areas 3 | . . 2 1 Known Exits Taken . | . . . . Unknown Exits Taken 3 | 1 1 1 . Scrap Searched 1 | . . 1 . Spaces Dug 3 | . 3 . . Terrain Destroyed 3 | . 3 . . Melee 1 | . 1 . . Projectile 2 | . 2 . . AOE . | . . . . Terrain Rammed . | . . . . Walls Destroyed . | . . . . Machines Disabled . | . . . . Actions | -11 -10 -10 -10 --------- Run | Yrd Mat Min Exi Total 1877 | 144 633 629 471 Wait 133 | 44 40 . 49 Move 1551 | 69 501 625 356 Hop . | . . . . Pick Up 33 | 9 15 1 8 Fast Attach 7 | 7 . . . Attach 7 | . 1 . 6 Detach . | . . . . Swap 16 | 1 11 . 4 Drop 24 | 1 13 1 9 Fire 105 | 13 51 2 39 Melee 1 | . 1 . . Ram . | . . . . Kick . | . . . . Crush . | . . . . Escape Stasis . | . . . . Rewire . | . . . . Trap . | . . . . Miscellaneous . | . . . . Route ------- -11/Scrapyard -10/Materials (discovered 4 exits: [*Mat x2] / [*Min x2]) -10/Mines (discovered 3 exits: [*Mat x2] / *Exi) -10/Exiles (discovered 1 exit: [*Min]) History --------- Turn | Location | Event 9 | -11/Scrapyard | Discovered new exit (range 16) 211 | -11/Scrapyard | Entered Materials 313 | -10/Materials | Build established: Mutant 467 | -10/Materials | Discovered new exit (range 11) 540 | -10/Materials | Discovered new exit (range 4) 790 | -10/Materials | Discovered new exit (range 9) 911 | -10/Materials | Derelicts attacked the area 917 | -10/Materials | Discovered new exit (range 16) 1115 | -10/Materials | Central database locked down 1244 | -10/Materials | Entered Mines 1290 | -10/Mines | Met a Derelict bent on vengeance 1342 | -10/Mines | Learned location of 1 exit from Materials 1638 | -10/Mines | Deemed a non-threat by the Exiles lab entrance 1638 | -10/Mines | Discovered new exit (range 5) 1817 | -10/Mines | Learned location of Zion (-6) 1828 | -10/Mines | Discovered new exit (range 10) 1836 | -10/Mines | Learned location of Storage (-7) 1963 | -10/Mines | Discovered new exit (range 9) 2252 | -10/Mines | Entered Exiles 2280 | -10/Exiles | Discovered new exit (range 14) 2333 | -10/Exiles | Met 8R-AWN 2388 | -10/Exiles | Met EX-HEX 2513 | -10/Exiles | Met EX-DEC 2904 | -10/Exiles | Met EX-BIN 2940 | -10/Exiles | Aligned with FarCom system 2942 | -10/Exiles | Given EX-Vault access code 2997 | -10/Exiles | Opened EX-Vault 3012 | -10/Exiles | Found Cloak of Protection 3065 | -10/Exiles | Warned to stay clear of 0b10 Research branches 3214 | -10/Exiles | Attacked by the Exiles 3352 | -10/Exiles | Core integrity fell below 50% 3388 | -10/Exiles | Core integrity fell below 20% 3417 | -10/Exiles | Destroyed by 8R-AWN with 8R-AWN's Boregun Last Messages --------------- 03370_ Penetrated by HV Slug. 03378_ Critical hit (Destroy). 03378_ Hvy. Assault Rifle destroyed. 03378_ Penetrated by HV Slug. 03383_ HV Slug penetrates Wall. 03387_ Penetrated by HV Slug. 03391_ Critical hit (Destroy). 03391_ Lgt. Treads destroyed. 03391_ Penetrated by HV Slug. 03395_ HV Slug penetrates Wall. 03395_ Penetrated by HV Slug. 03399_ Wall collapses. 03400_ Penetrated by HV Slug. 03408_ Lgt. Armor Plating destroyed. 03408_ Penetrated by HV Slug. 03408_ Critical hit (Destroy). 03408_ Hvy. Assault Rifle destroyed. 03410_ Dropped Hcp. Matter Pod. 03411_ Extracted 200 matter. 03412_ Penetrated by HV Slug. Map ----- +----------------------------------------------------+ | ?????????????????????????????????????????????????? | | ?????????????????????????????????????????????????? | | ?????????????????????????????????????????????????? | | ?????????????????????????????????????????????????? | | ?????????????????????????????????????????????????? | | ?????????????????????????????????????????????????? | | ?????????????????????????????????????????????????? | | ?????????????????????????????????????????????????? | | ?????????????????????????????????????????????????? | | ?????????????????????????????????????????????????? | | ?????????????????????????????#######?????????????? | | ??????????????? ######???????#!!! "#?????????????? | | ??????????????? #""#??????# "#?????????????? | | ??????????????? ??????# "#?????????????? | | ?????????????? #????## ""#????????????## | | ?????????????? #####" ""#???????????? | | ??????????????? ## ""?????????????" | | ???????????????? #" #?????????????"" | | ??????????????????# #?????????????"" | | ?????????????????????# ###???????????"" | | ??????????????????????## "#??????????? | | ???????????????######## "##???????????" | | ???????????????# !!"""" * ""#?????????# | | ???????????????#! g ###"" "#####???### | | ???????????????#! #?##" % "####X# | | ???????????????#! @;#??#" * | | ???????????????# !""""" ;;; #?#"# % | | ???????????????########;# # #?#### | | ?????????????????????# # ## #???### | | ?????????????????????# ?# #? #?????### | | ?????????????????????#??# #??#???????## | | ????????????????????????# #???????????## | | ????????????????????????# #????????????##" | | ????????????????????????# #?????????????#""" | | ????????????????????????? ?????????????##" | | ????????????????????????? ?????????????#"" | | ????????????????????????? ????????????##""" | | ????????????????????????? ????????????#""" | | ????????????????????????? ????????????#""" | | ????????????????????????? ????????????#"" | | ????????????????????????? ????????????#""" | | ??????????????????????????????????????#"" | | ??????????????????????????????????????##"" | | ???????????????????????????????????????#"""" | | ???????????????????????????????????????## | | ????????????????????????????????????????#" | | ????????????????????????????????????????#"""" | | ????????????????????????????????????????#"" | | ?????????????????????????????????????????" | | ?????????????????????????????????????????""" | +----------------------------------------------------+ Best States ------------- Heat Dissipation 25 Energy Generation 12 Energy Capacity 265 Matter Stores 300 Matter Capacity 300 Sight Range 16 Terrain Scan Range 16 Terrain Scan Density 10 Armor Coverage 150 Evasion (%) 40 Recoil Reduction 2 Item Schematics ----------------- None Robot Schematics ------------------ None Fabricated ------------ Nothing Alien Tech Used ----------------- None Achievements -------------- None Challenges ------------ None Game ------ Seed TitaniumGreatPrototype Manual? 0 Play Time 00:28:33 Cumulative 566.9 hours Start 2024.12.30 @ 08:00:01 End 2024.12.30 @ 08:31:17 Sessions 1 Manual Loads 0 Difficulty Rogue Special Mode None Game No. 113 Rogue 106 Adventurer 1 Explorer 6 Win Type - Total 48 Types 16/4/15/1/1/1/8/1/1 Lore% 66 Gallery% 87 Achievement% 87 Wizard Run 0 Options --------- Layout 0 ASCII 0 Keyboard 0 Movement Mouse Keybinds 0 Fullscreen 1 Font 24/Smallcaps Map View 76x50 Zoom Use 0% Tactical HUD 1 Map Filters NONE Filters NONE Steam 1 RUN: 443222e5-ca83-4527-ba7a-24527e4d775a